bitfinex-derivatives/quotes_BNBF0:USTF0_20250603
["timestamp","ask_amount","ask_price","bid_price","bid_amount"]
[1748956225171,0.30056656,665.41,664.48,0.47842731]
[1748956225373,0.30056656,665.41,664.49,0.55825588]
[1748956225569,0.30056656,665.41,664.5,0.55825588]
[1748956225876,0.30056656,665.41,664.51,0.55825588]
[1748956226071,0.30056656,665.41,664.52,0.55825588]
[1748956226273,0.30056656,665.41,664.53,0.55825588]
[1748956226473,0.30056656,665.41,664.36,1.11976362]
[1748956226474,0.30056656,665.41,664.39,0.47842731]
[1748956226671,0.30056656,665.41,664.4,1.03652619]
[1748956226877,0.30056656,665.41,664.41,0.55809888]
[1748956227177,0.30056656,665.41,664.42,0.55809888]
[1748956227377,0.30056656,665.41,664.43,0.55809888]
[1748956227583,0.30056656,665.41,664.44,0.55809888]
[1748956227779,0.30056656,665.41,664.36,1.11976362]
[1748956227780,0.30056656,665.41,664.45,0.55809888]
[1748956227979,0.30056656,665.41,664.46,0.55809888]
[1748956228279,0.30056656,665.41,664.36,1.11976362]
[1748956228580,0.30056656,665.41,664.37,0.55780695]
[1748956228782,0.30056656,665.41,664.38,0.55780695]
[1748956228974,0.30056656,665.41,664.39,0.55780695]
[1748956229174,0.30056656,665.41,664.36,1.11976362]
[1748956229377,0.30056656,665.41,664.37,0.55768625]
[1748956229578,0.30056656,665.41,664.36,1.11976362]
[1748956229774,0.30056656,665.41,664.37,0.55768669]
[1748956229979,0.30056656,665.41,664.38,0.55768539]
[1748956230281,0.30056656,665.41,664.36,1.11976362]
[1748956242185,5.21759198,665.78,664.36,1.11976362]
[1748956242385,0.30040404,665.77,664.36,1.11976362]
[1748956243180,0.30040404,665.77,664.37,1.10264972]
[1748956243384,0.30040404,665.77,664.36,1.11976362]
[1748956243585,0.30040404,665.77,664.37,1.10264632]
[1748956243781,0.30040404,665.77,664.36,1.11976362]
[1748956243982,0.30040404,665.77,664.37,1.10264896]
[1748956244179,0.30040404,665.77,664.04,1.12245679]
[1748956244385,0.30040404,665.77,664.06,0.3011776]
[1748956244587,0.30040404,665.77,664.07,1.10240639]
[1748956244787,0.30040404,665.77,664.09,0.30116399]
[1748956244984,0.30040404,665.77,664.1,1.85503086]
[1748956245188,0.30040404,665.77,664.09,0.30116399]
[1748956245189,0.30040404,665.77,664.11,1.40356131]
[1748956245385,0.30040404,665.77,664.12,2.15617973]
[1748956245588,0.30040404,665.77,664.13,2.15617522]
[1748956245793,0.30040404,665.77,664.14,1.40354771]
[1748956245992,0.30040404,665.77,664.15,1.40354318]
[1748956246185,0.30040404,665.77,664.16,1.40353864]
[1748956246389,0.30040404,665.77,664.04,1.12245679]
[1748956246390,0.30040404,665.77,664.17,1.40240852]
[1748956246691,0.30040404,665.77,664.18,1.40240398]
[1748956246891,0.30040404,665.77,664.19,1.40239945]
[1748956247092,0.30040404,665.77,664.2,1.40239492]
[1748956247387,0.30040404,665.77,664.21,2.15501287]
[1748956247590,0.30040404,665.77,664.22,1.40238585]
[1748956247788,0.30040404,665.77,664.23,1.40238132]
[1748956247992,0.30040404,665.77,664.24,1.40237678]
[1748956248188,0.30040404,665.77,664.25,1.40237225]
[1748956248394,0.30040404,665.77,664.26,2.15496112]
[1748956248689,0.30040404,665.77,664.27,2.15495226]
[1748956248892,0.30040404,665.77,664.28,1.40235865]
[1748956249091,0.30040404,665.77,664.29,1.40235412]
[1748956249291,0.30040404,665.77,664.3,1.40234959]
[1748956249496,0.30040404,665.77,664.31,2.1549068]
[1748956249690,0.30040404,665.77,664.32,1.85384255]
[1748956249895,0.30040404,665.77,664.33,1.40233599]
[1748956250089,0.30040404,665.77,664.34,1.40233146]
[1748956250291,0.30040404,665.77,664.35,1.05360472]
[1748956250494,0.30040404,665.77,664.36,1.40146618]
[1748956250691,0.30040404,665.77,664.37,1.40146165]
[1748956250895,0.30040404,665.77,664.38,1.40145712]
[1748956251094,0.30040404,665.77,664.39,1.10042458]
[1748956251295,0.30040404,665.77,664.4,1.10042458]
[1748956251496,0.30040404,665.77,664.41,1.10042458]
[1748956251691,0.30040404,665.77,664.38,0.30103254]
[1748956251692,0.30040404,665.77,664.42,1.10042458]
[1748956251892,0.30040404,665.77,664.43,1.10042458]
[1748956252096,0.30040404,665.77,664.44,1.10042458]
[1748956252295,0.30040404,665.77,664.45,1.10042458]
[1748956252493,0.30040404,665.77,664.46,1.10042458]
[1748956252697,0.30040404,665.77,664.47,1.10042458]
[1748956252996,0.30040404,665.77,664.48,1.10042458]
[1748956253197,0.30040404,665.77,664.38,0.30103254]
[1748956253391,0.30040404,665.77,664.39,1.09992871]
[1748956253597,0.30040404,665.77,664.4,1.09992871]
[1748956253897,0.30040404,665.77,664.38,0.30103254]
[1748956253898,0.30040404,665.77,664.41,1.09992871]
[1748956254098,0.30040404,665.77,664.38,0.30103254]
[1748956254099,0.30040404,665.77,664.42,1.09992871]
[1748956254294,0.30040404,665.77,664.43,1.09992871]
[1748956254600,0.30040404,665.77,664.44,1.09992871]
[1748956254898,0.30040404,665.77,664.45,1.09992871]
[1748956255091,0.30040404,665.77,664.38,0.30103254]
[1748956255092,0.30040404,665.77,664.46,1.09992871]
[1748956255293,0.30040404,665.77,664.47,1.09992871]
[1748956255495,0.30040404,665.77,664.48,1.09992871]
[1748956255699,0.30040404,665.77,664.38,0.30103254]
[1748956255900,0.30040404,665.77,664.39,1.09970958]
[1748956256200,0.30040404,665.77,664.4,1.09970958]
[1748956256400,0.30040404,665.77,664.41,1.65775239]
[1748956256599,0.30040404,665.77,664.42,1.65775239]
[1748956256801,0.30040404,665.77,664.43,1.09970958]
[1748956256998,0.30040404,665.77,664.44,1.09970958]
[1748956257197,0.30040404,665.77,664.45,1.09970958]
[1748956257403,0.30040404,665.77,664.46,1.09970958]
[1748956257703,0.30040404,665.77,664.47,1.09970958]
[1748956258002,0.30040404,665.77,664.38,0.30103254]
[1748956258199,0.30040404,665.77,664.61,0.47842731]
[1748956258405,0.30040404,665.77,664.62,0.55802141]
[1748956258605,0.30040404,665.77,664.63,0.55802141]
[1748956258799,0.30040404,665.77,664.64,0.55802141]
[1748956259002,0.30040404,665.77,664.65,0.55802141]
[1748956259204,0.30040404,665.77,664.7,0.47842731]
[1748956259403,0.30040404,665.77,664.38,0.30103254]
[1748956259404,0.30040404,665.77,664.71,0.55802141]
[1748956259604,0.30040404,665.77,664.72,0.55802141]
[1748956259801,0.30040404,665.77,664.78,0.47842731]
[1748956260108,0.30040404,665.77,664.8,0.47842731]
[1748956260304,0.30040404,665.77,664.81,0.55802141]
[1748956260499,0.30040404,665.77,664.82,0.55802141]
[1748956260705,0.30040404,665.77,664.83,0.55802141]
[1748956260906,0.30040404,665.77,664.81,0.47842731]
[1748956260907,0.30040404,665.77,664.84,0.55802141]
[1748956261106,0.30040404,665.77,664.85,0.55802141]
[1748956261306,0.30040404,665.77,664.86,0.55802141]
[1748956261606,0.30040404,665.77,664.87,0.55802141]
[1748956261806,0.30040404,665.77,664.88,0.55802141]
[1748956262007,0.30040404,665.77,664.82,0.47842731]
[1748956262008,0.30040404,665.77,664.89,0.55802141]
[1748956262207,0.30040404,665.77,664.7,0.47842731]
[1748956262403,0.30040404,665.77,664.71,0.55810765]
[1748956262604,0.30040404,665.77,664.72,0.55810765]
[1748956262804,0.30040404,665.77,664.73,0.55810765]
[1748956263007,0.30040404,665.77,664.64,0.47842731]
[1748956263008,0.30040404,665.77,664.74,0.55810765]
[1748956263206,0.30040404,665.77,664.75,0.55810765]
[1748956263507,0.30040404,665.77,664.76,0.55810765]
[1748956263702,0.30040404,665.77,664.77,0.55810765]
[1748956263905,0.30040404,665.77,664.78,0.55810765]
[1748956264104,0.30040404,665.77,664.79,0.55810765]
[1748956264302,0.30040404,665.77,664.8,0.55810765]
[1748956264509,0.30040404,665.77,664.81,0.55810765]
[1748956264708,0.30040404,665.77,664.82,0.55810765]
[1748956264909,0.30040404,665.77,664.83,0.55810765]
[1748956265209,0.30040404,665.77,664.84,0.55810765]
[1748956265404,0.30040404,665.77,664.69,0.47842731]
[1748956265611,0.30040404,665.77,664.7,0.55813321]
[1748956265908,0.30040404,665.77,664.71,0.55813321]
[1748956266103,0.30040404,665.77,664.72,0.55813321]
[1748956266314,0.30040404,665.77,664.73,0.55813321]
[1748956266509,0.30040404,665.77,664.74,0.55813321]
[1748956266709,0.30040404,665.77,664.78,0.47842731]
[1748956266912,0.30040404,665.77,664.79,0.55813321]
[1748956267104,0.30040404,665.77,664.38,0.30103254]
[1748956267310,0.30040404,665.77,664.39,1.09761127]
[1748956267513,0.30040404,665.77,664.4,1.09761127]
[1748956267708,0.30040404,665.77,664.41,1.39863021]
[1748956267913,0.30040404,665.77,664.42,1.39862568]
[1748956268116,0.30040404,665.77,664.43,1.09761127]
[1748956268311,0.30040404,665.77,664.42,0.30101441]
[1748956268312,0.30040404,665.77,664.44,1.39861662]
[1748956268613,0.30040404,665.77,664.45,1.09761127]
[1748956268813,0.30040404,665.77,664.46,1.09761127]
[1748956269014,0.30040404,665.77,664.44,0.30100535]
[1748956269214,0.30040404,665.77,664.45,1.09756887]
[1748956269410,0.30040404,665.77,664.46,1.09756887]
[1748956269716,0.30040404,665.77,664.47,1.09756887]
[1748956270015,0.30040404,665.77,664.48,1.09756887]
[1748956270214,0.30040404,665.77,664.44,0.30100535]
[1748956270215,0.30040404,665.77,664.49,1.09756887]
[1748956270415,0.30040404,665.77,664.5,1.09756887]
[1748956270615,0.30040404,665.77,664.51,1.09756887]
[1748956270815,0.30040404,665.77,664.44,0.30100535]
[1748956271016,0.30040404,665.77,664.45,1.09768242]
[1748956271316,0.30040404,665.77,664.46,1.39867871]
[1748956271516,0.30040404,665.77,664.47,1.09768242]
[1748956271710,0.30040404,665.77,664.48,1.09768242]
[1748956272011,0.30040404,665.77,664.49,1.09768242]
[1748956272212,0.30040404,665.77,664.5,1.09768242]
[1748956272412,0.30040404,665.77,664.51,1.09712973]
[1748956272611,0.30040404,665.77,664.54,0.47842731]
[1748956272813,0.30040404,665.77,664.55,1.65554222]
[1748956273015,0.30040404,665.77,664.56,0.55841249]
[1748956273316,0.30040404,665.77,664.57,1.6554609]
[1748956273512,0.30040404,665.77,664.58,1.6554609]
[1748956273716,0.30040404,665.77,664.59,1.6554609]
[1748956273911,0.30040404,665.77,664.78,0.47842731]
[1748956274110,0.30040404,665.77,664.8,0.47842731]
[1748956274313,0.30040404,665.77,664.81,0.55841249]
[1748956274515,0.30040404,665.77,664.88,0.47842731]
[1748956274713,0.30040404,665.77,664.89,0.55841249]
[1748956274916,0.30040404,665.77,664.9,0.55841249]
[1748956275117,0.30040404,665.77,664.91,0.55841249]
[1748956275312,0.30040404,665.77,664.54,0.30096006]
[1748956275313,0.30040404,665.77,664.92,0.55841249]
[1748956275514,0.30040404,665.77,664.93,0.55841249]
[1748956275713,0.30040404,665.77,664.94,0.55841249]
[1748956275918,0.30040404,665.77,664.95,0.55841249]
[1748956276114,0.30040404,665.77,664.88,0.47842731]
[1748956276115,0.30040404,665.77,664.96,0.55841249]
[1748956276314,0.30040404,665.77,664.81,0.47842731]
[1748956276512,0.30040404,665.77,664.82,0.55850154]
[1748956276719,0.30040404,665.77,664.83,0.55850154]
[1748956276916,0.30040404,665.77,664.84,0.55850154]
[1748956277219,0.30040404,665.77,664.85,0.55850154]
[1748956277420,0.30040404,665.77,664.76,0.47842731]
[1748956277421,0.30040404,665.77,664.86,0.55850154]
[1748956277621,0.30040404,665.77,664.87,0.55850154]
[1748956277822,0.30040404,665.77,664.88,0.55850154]
[1748956278015,0.30040404,665.77,664.89,0.55850154]
[1748956278219,0.30040404,665.77,664.71,0.47842731]
[1748956278515,0.30040404,665.77,664.72,0.55841138]
[1748956278717,0.30040404,665.77,664.73,0.55841138]
[1748956278915,0.30040404,665.77,664.72,0.47842731]
[1748956278916,3.72685141,665.92,664.54,0.30096006]
[1748956279120,5.21759198,666.17,664.55,1.65663458]
[1748956279319,5.21759198,666.17,664.56,1.3992034]
[1748956279320,0.30022817,666.16,664.56,1.3992034]
[1748956279517,0.30022817,666.16,664.57,1.39919887]
[1748956279719,0.30022817,666.16,664.24,1.49596051]
[1748956279720,0.30022817,666.16,664.58,1.95743269]
[1748956279921,3.72685141,666.15,664.59,1.95742817]
[1748956280122,0.30023718,666.14,664.6,1.95742364]
[1748956280421,0.30023718,666.14,664.27,2.24854958]
[1748956280422,4.02708859,666.14,664.61,1.39918076]
[1748956280616,4.02708859,666.14,664.62,1.39917623]
[1748956280821,0.30023718,666.14,664.63,1.3991717]
[1748956281018,0.30023718,666.14,664.64,1.39940963]
[1748956281322,0.30023718,666.14,664.65,1.09849485]
[1748956281526,0.30023718,666.14,664.66,1.09849485]
[1748956281723,0.30023718,666.14,664.67,1.09849485]
[1748956281921,0.30023718,666.14,664.68,1.09849485]
[1748956282124,0.30023718,666.14,664.69,1.0981793]
[1748956282323,0.30023718,666.14,664.64,0.30091478]
[1748956282324,0.30023718,666.14,664.7,1.09825179]
[1748956282523,0.30023718,666.14,664.64,0.30091478]
[1748956282524,0.30023718,666.14,664.71,1.09825179]
[1748956282824,0.30023718,666.14,664.72,1.09825179]
[1748956283025,0.30023718,666.14,664.73,1.09825179]
[1748956283227,0.30023718,666.14,664.74,1.3991213]
[1748956283420,0.30023718,666.14,664.75,1.39911677]
[1748956283623,0.30023718,666.14,664.76,1.39911225]
[1748956283820,0.30023718,666.14,664.77,1.09825179]
[1748956284020,0.30023718,666.14,664.78,1.39910319]
[1748956284320,0.30023718,666.14,664.79,1.09825179]
[1748956284525,0.30023718,666.14,664.8,1.09825179]
[1748956284724,0.30023718,666.14,664.81,1.09825179]
[1748956284926,0.30023718,666.14,664.82,1.09727196]
[1748956285122,0.30023718,666.14,664.78,0.3008514]
[1748956285421,0.30023718,666.14,664.79,1.09698927]
[1748956285626,0.30023718,666.14,664.8,1.09698927]
[1748956285825,0.30023718,666.14,664.81,1.09698927]
[1748956286023,0.30023718,666.14,664.78,0.3008514]
[1748956286929,0.30023718,666.14,664.79,1.09671239]
[1748956287126,0.30023718,666.14,664.8,1.39755474]
[1748956287426,0.30023718,666.14,664.81,1.09671239]
[1748956287730,0.30023718,666.14,664.8,0.30084235]
[1748956289125,0.30023718,666.14,664.8,0.77770621]
[1748956289329,0.30023718,666.14,664.8,0.30084235]
[1748956290325,0.30023718,666.14,665.12,0.47686386]
[1748956291234,0.30023718,666.14,664.87,0.47686386]
[1748956292033,0.30023718,666.14,664.88,0.47686386]
[1748956292229,0.30023718,666.14,664.89,0.47686386]
[1748956292432,0.30023718,666.14,664.92,0.47686386]
[1748956293027,0.30023718,666.14,664.93,0.47686386]
[1748956293430,0.30023718,666.14,664.95,0.47686386]
[1748956294233,0.30023718,666.14,664.8,0.30084235]
[1748956294234,0.30023718,666.14,664.96,0.47686386]
[1748956294431,0.30023718,666.14,664.97,0.47686386]
[1748956294829,0.30023718,666.14,664.96,0.47686386]
[1748956295737,0.30023718,666.14,665.0,0.47686386]
[1748956296335,0.30023718,666.14,664.99,0.47686386]
[1748956296832,0.30023718,666.14,665.0,0.47686386]
[1748956297236,0.30023718,666.14,665.01,0.47686386]
[1748956297538,0.30023718,666.14,664.99,0.47686386]
[1748956298437,0.30023718,666.14,664.98,0.47686386]
[1748956298932,0.30023718,666.14,664.99,0.47686386]
[1748956299139,0.30023718,666.14,665.01,0.47686386]
[1748956299334,0.30023718,666.14,664.98,0.47686386]
[1748956299839,0.30023718,666.14,664.97,0.47686386]
[1748956300034,0.30023718,666.14,664.98,0.47686386]
[1748956300337,0.30023718,666.14,664.97,0.47686386]
[1748956300738,0.30023718,666.14,664.96,0.47686386]
[1748956300935,0.30023718,666.14,665.37,0.47686386]
[1748956301135,0.30023718,666.14,665.19,0.47686386]
[1748956301336,0.30023718,666.14,664.8,0.30084235]
[1748956301337,3.73366447,666.07,665.2,1.0337057]
[1748956301534,3.73366447,666.07,665.21,0.55684184]
[1748956301738,3.73366447,666.07,665.22,0.55684184]
[1748956301941,3.73366447,666.09,665.23,0.55684184]
[1748956302134,3.73366447,666.09,665.24,0.55684184]
[1748956302337,3.73366447,666.07,665.25,0.55684184]
[1748956302642,3.73366447,666.07,665.26,0.55684184]
[1748956302937,3.73366447,666.07,665.27,0.55684184]
[1748956303136,3.73366447,666.07,665.28,0.55684184]
[1748956303336,3.73366447,666.07,665.29,0.55684184]
[1748956303540,3.73366447,666.07,665.3,0.55684184]
[1748956303838,3.73366447,666.07,665.31,0.55684184]
[1748956304042,3.73366447,666.06,665.32,0.55684184]
[1748956304242,3.73366447,666.06,665.33,0.55684184]
[1748956304442,3.73366447,666.06,665.34,0.55684184]
[1748956304742,3.73366447,666.06,664.8,0.30084235]
[1748956304743,3.73366447,666.06,665.35,0.11381251]
[1748956304944,3.73366447,666.06,665.22,0.47686386]
[1748956305238,3.73366447,666.06,665.23,0.47686386]
[1748956305641,3.73366447,666.05,665.23,0.47686386]
[1748956305842,3.73366447,666.05,665.15,0.47686386]
[1748956306045,3.73366447,666.05,664.8,0.30084235]
[1748956306046,3.73366447,666.1,665.14,0.47686386]
[1748956306238,3.73366447,666.1,665.15,0.47686386]
[1748956307239,3.73366447,666.1,665.16,0.47686386]
[1748956307644,3.73366447,666.1,665.12,0.47686386]
[1748956307845,3.73366447,666.09,665.15,0.47686386]
[1748956308141,3.73366447,666.09,665.02,0.47686386]
[1748956308343,0.30023718,666.14,664.99,0.47686386]
[1748956308539,0.30023718,666.14,664.8,0.30084235]
[1748956308540,0.30023718,666.14,665.0,0.47686386]
[1748956309244,0.30023718,666.14,665.01,0.47686386]
[1748956309451,0.30023718,666.14,664.99,0.47686386]
[1748956309744,0.30023718,666.14,664.8,0.30084235]
[1748956309745,0.30023718,666.14,665.0,0.47686386]
[1748956309946,0.30023718,666.14,664.96,0.47686386]
[1748956310146,0.30023718,666.14,664.99,0.47686386]
[1748956310442,0.30023718,666.14,664.97,0.47686386]
[1748956310842,0.30023718,666.14,664.98,0.47686386]
[1748956311244,0.30023718,666.14,664.96,0.47686386]
[1748956312343,0.30023718,666.14,664.98,0.47686386]
[1748956312548,0.30023718,666.14,664.97,0.47686386]
[1748956312747,0.30023718,666.14,664.98,0.47686386]
[1748956313152,0.30023718,666.14,665.01,0.47686386]
[1748956313362,0.30023718,666.14,665.0,0.47686386]
[1748956313750,0.30023718,666.14,665.01,0.47686386]
[1748956314153,0.30023718,666.14,664.99,0.47686386]
[1748956314353,0.30023718,666.14,665.0,0.47686386]
[1748956314954,0.30023718,666.14,665.01,0.47686386]
[1748956315256,0.30023718,666.14,665.0,0.47686386]
[1748956315454,0.30023718,666.14,665.03,0.47686386]
[1748956315651,0.30023718,666.14,665.06,0.47686386]
[1748956316251,0.30023718,666.14,665.0,0.47686386]
[1748956317157,0.30023718,666.14,665.07,0.47686386]
[1748956317355,0.30023718,666.14,665.05,0.47686386]
[1748956317751,0.30023718,666.14,665.04,0.47686386]
[1748956318158,0.30023718,666.14,665.05,0.47686386]
[1748956318359,0.30023718,666.14,665.02,0.47686386]
[1748956319361,0.30023718,666.14,664.82,0.47686386]
[1748956319567,0.30023718,666.14,664.83,1.14737743]
[1748956319762,0.30023718,666.14,664.82,0.47686386]
[1748956319763,0.30023718,666.14,664.84,1.44820168]
[1748956319966,0.30023718,666.14,664.85,1.44819716]
[1748956320157,0.30023718,666.14,664.86,1.14737743]
[1748956320359,0.30023718,666.14,664.87,1.14737743]
[1748956320559,0.30023718,666.14,664.88,1.14737743]
[1748956320757,0.30023718,666.14,664.89,1.14737743]
[1748956320961,0.30023718,666.14,664.9,1.14522625]
[1748956321156,0.30023718,666.14,664.91,1.14522625]
[1748956321362,0.30023718,666.14,664.92,1.14522625]
[1748956321561,0.30023718,666.14,664.93,1.14522625]
[1748956321765,0.30023718,666.14,664.94,1.14522625]
[1748956321965,0.30023718,666.14,664.85,0.30081973]
[1748956322259,0.30023718,666.14,664.86,1.15254259]
[1748956322463,0.30023718,666.14,664.85,0.30081973]
[1748956322464,0.30023718,666.14,664.87,1.15254259]
[1748956322662,0.30023718,666.14,664.88,1.15254259]
[1748956322964,0.30023718,666.14,664.89,1.15254259]
[1748956323163,0.30023718,666.14,664.9,1.15254259]
[1748956323373,0.30023718,666.14,664.91,1.15254259]
[1748956323568,0.30023718,666.14,664.85,0.30081973]
[1748956323760,0.30023718,666.14,664.86,1.15232896]
[1748956323961,0.30023718,666.14,664.87,1.15232896]
[1748956324166,0.30023718,666.14,664.88,1.15232896]
[1748956324467,0.30023718,666.14,664.89,1.15232896]
[1748956324668,0.30023718,666.14,664.9,1.15232896]
[1748956324964,0.30023718,666.14,664.85,0.30081973]
[1748956325167,0.30023718,666.14,664.86,1.15113653]
[1748956325368,0.30023718,666.14,664.87,1.15113653]
[1748956325565,0.30023718,666.14,664.88,1.15113653]
[1748956325765,0.30023718,666.14,664.89,1.15113653]
[1748956325965,0.30023718,666.14,664.85,0.30081973]
[1748956325966,0.30023718,666.14,664.9,1.15113653]
[1748956326164,0.30023718,666.14,664.85,0.30081973]
[1748956326369,0.30023718,666.14,664.86,1.15171101]
[1748956326664,0.30023718,666.14,664.87,1.15171101]
[1748956326868,0.30023718,666.14,664.88,1.15171101]
[1748956327068,0.30023718,666.14,664.89,1.15171101]
[1748956327268,0.30023718,666.14,664.85,0.30081973]
[1748956329170,0.30023718,666.14,664.86,1.15186114]
[1748956329366,0.30023718,666.14,664.85,0.30081973]
[1748956329671,0.30023718,666.14,665.14,0.47865054]
[1748956331673,0.30023718,666.14,665.13,0.47865054]
[1748956332173,0.30023718,666.14,665.16,0.47865054]
[1748956332672,0.30023718,666.14,665.2,0.47865054]
[1748956333671,0.30023718,666.14,665.19,0.47865054]
[1748956333972,0.30023718,666.14,665.17,0.47865054]
[1748956334171,0.30023718,666.14,664.85,0.30081973]
[1748956334172,0.30023718,666.14,665.18,0.47865054]
[1748956334472,0.30023718,666.14,665.3,0.47865054]
[1748956334665,3.73366447,666.03,665.3,0.47865054]
[1748956335167,3.73366447,666.02,665.3,0.47865054]
[1748956335372,3.73366447,666.02,665.32,0.47865054]
[1748956335568,3.73366447,666.12,665.2,0.47865054]
[1748956335767,3.73366447,666.12,665.14,0.47865054]
[1748956336070,0.30023718,666.14,665.12,0.47865054]
[1748956336568,0.30023718,666.14,665.11,0.47865054]
[1748956336874,0.30023718,666.14,665.1,0.47865054]
[1748956337270,4.03390165,666.14,665.1,0.47865054]
[1748956337772,0.30023718,666.14,665.11,0.47865054]
[1748956338480,0.30023718,666.14,664.85,0.30081973]
[1748956338481,0.30023718,666.14,665.12,0.47865054]
[1748956339270,0.30023718,666.14,665.08,0.47865054]
[1748956342475,0.30023718,666.14,665.09,0.47865054]
[1748956342876,4.03390165,666.14,665.1,0.47865054]
[1748956343074,4.03390165,666.14,665.18,0.47865054]
[1748956343277,4.03390165,666.14,665.27,0.47865054]
[1748956343278,3.73366447,665.96,665.27,0.47865054]
[1748956344173,3.73366447,665.96,665.26,0.47865054]
[1748956344379,0.30023718,666.14,665.26,0.47865054]
[1748956344380,3.73366447,665.95,665.26,0.47865054]
[1748956345876,3.73366447,665.95,665.27,0.47865054]
[1748956346679,3.73366447,665.95,665.28,0.47865054]
[1748956347073,3.73366447,665.93,665.28,0.47865054]
[1748956347274,3.73366447,665.93,665.29,0.47865054]
[1748956347675,3.73366447,665.92,665.29,0.47865054]
[1748956348478,3.73366447,665.92,665.3,0.47865054]
[1748956348880,3.73366447,665.93,665.28,0.47865054]
[1748956349080,3.73366447,665.93,665.38,0.47865054]
[1748956349279,3.73366447,665.93,664.88,0.47686386]
[1748956349280,3.73366447,665.84,665.37,0.47865054]
[1748956349679,3.73366447,665.84,665.37,0.09745683]
[1748956349880,3.73366447,665.86,664.85,0.77768359]
[1748956350184,3.73366447,665.86,664.86,1.14231399]
[1748956350386,3.73366447,665.87,664.87,1.14231399]
[1748956350579,3.73366447,665.87,664.88,1.14231399]
[1748956350785,3.73366447,665.87,664.89,1.14231399]
[1748956350986,3.73366447,665.87,664.9,1.14231399]
[1748956351286,3.73366447,665.87,664.91,1.14231399]
[1748956351485,3.73366447,665.87,664.85,0.30081973]
[1748956351679,3.73366447,665.87,664.86,1.14194427]
[1748956351886,3.73366447,666.05,664.87,1.14194427]
[1748956352080,3.73366447,666.05,664.88,1.14194427]
[1748956352280,3.73366447,666.08,664.89,1.14194427]
[1748956352484,3.73366447,666.08,664.9,1.14194427]
[1748956352685,3.73366447,666.07,664.91,1.14194427]
[1748956352886,3.73366447,666.07,664.92,1.14194899]
[1748956353084,3.73366447,666.07,664.93,1.14194899]
[1748956353284,3.73366447,666.07,664.94,1.14194899]
[1748956353588,3.73366447,666.07,664.85,0.30081973]
[1748956353779,3.73366447,666.07,664.86,1.14173608]
[1748956353982,3.73366447,666.07,664.87,1.14173608]
[1748956354185,3.73366447,666.07,664.88,1.14173608]
[1748956354388,3.73366447,666.07,664.89,1.14173608]
[1748956354585,3.73366447,666.07,664.9,1.14173608]
[1748956354786,3.73366447,666.07,664.91,1.14173608]
[1748956354986,3.73366447,666.07,664.92,1.14173608]
[1748956355186,3.73366447,666.07,664.93,1.14173608]
[1748956355386,3.73366447,666.07,664.94,1.14173608]
[1748956355586,3.73366447,666.07,664.85,0.30081973]
[1748956355789,3.73366447,666.07,664.86,1.14163208]
[1748956355988,3.73366447,666.1,664.87,1.14163208]
[1748956356191,3.73366447,666.1,664.88,1.14163208]
[1748956356386,3.73366447,666.1,664.89,1.14163208]
[1748956356687,3.73366447,666.1,664.9,1.14163208]
[1748956356889,3.73366447,666.1,664.91,1.14163208]
[1748956357089,3.73366447,666.1,664.92,1.14163208]
[1748956357291,3.73366447,666.1,664.93,1.14163208]
[1748956357491,3.73366447,666.1,664.85,0.30081973]
[1748956357492,3.73366447,666.1,664.94,1.14163208]
[1748956357787,3.73366447,666.12,664.95,1.14163208]
[1748956357990,3.73366447,666.12,664.96,1.14163208]
[1748956358192,3.73366447,666.12,664.85,0.30081973]
[1748956358389,3.73366447,666.12,664.86,1.14096906]
[1748956358585,3.73366447,666.03,664.87,1.14096906]
[1748956358788,3.73366447,666.03,664.88,1.14096906]
[1748956358986,3.73366447,666.03,664.89,1.14096906]
[1748956359188,3.73366447,666.02,664.9,1.14096906]
[1748956359390,3.73366447,666.02,664.91,1.14096906]
[1748956359587,3.73366447,666.09,664.92,1.14096906]
[1748956359891,3.73366447,666.09,664.93,1.14107227]
[1748956360092,3.73366447,666.12,664.94,1.14107227]
[1748956360292,3.73366447,666.12,664.95,1.14107227]
[1748956360489,0.30023718,666.14,664.85,0.30081973]
[1748956360692,0.30023718,666.14,664.86,1.14069285]
[1748956360895,0.30023718,666.14,664.87,1.14069285]
[1748956361095,0.30023718,666.14,664.88,1.14069285]
[1748956361393,0.30023718,666.14,664.89,1.14069285]
[1748956361593,0.30023718,666.14,664.9,1.14069285]
[1748956361893,0.30023718,666.14,664.91,1.14069285]
[1748956362193,0.30023718,666.14,664.92,1.14069285]
[1748956362492,0.30023718,666.14,664.93,1.14069285]
[1748956362687,0.30023718,666.14,664.94,1.14069285]
[1748956362889,0.30023718,666.14,664.95,1.14069285]
[1748956363093,0.30023718,666.14,664.96,1.14069285]
[1748956363287,0.30023718,666.14,664.85,0.30081973]
[1748956363491,0.30023718,666.14,664.86,1.13898917]
[1748956363693,0.30023718,666.14,664.87,1.1371221]
[1748956363991,0.30023718,666.14,664.88,1.1371221]
[1748956364186,0.30023718,666.14,664.85,0.30081973]
[1748956364187,0.30023718,666.14,664.89,1.1371221]
[1748956364393,0.30023718,666.14,664.9,1.1371221]
[1748956364593,0.30023718,666.14,664.91,1.1371221]
[1748956364897,0.30023718,666.14,664.92,1.1371221]
[1748956365193,0.30023718,666.14,664.93,1.1371221]
[1748956365392,0.30023718,666.14,664.94,1.1371221]
[1748956365593,0.30023718,666.14,664.95,1.1371221]